[Event "Titled Tuesday Blitz January 10 Late 2023"]
[White "Szyszylo, Rafal"]
[Black "Simonovic, Miroslav"]
[WhiteFideId "1109626"]
[BlackFideId "919152"]
[WhiteElo "2091"]
[BlackElo "2082"]
[Result "1-0"]
[Round "08"]
[TimeControl "180+2"]
[Date "2023.01.10"]
[WhiteClock "0:00:12"]
[BlackClock "0:00:15"]

1. e4 {[%clk 0:00:00]}  c5 {[%clk 0:00:00]} 2. Nf3 {[%clk 0:03:00]}  Nc6 {[%clk 0:02:55]} 3. Bb5 {[%clk 0:03:00]}  g6 {[%clk 0:02:55]} 4. O-O {[%clk 0:02:59]}  Bg7 {[%clk 0:02:55]} 5. c3 {[%clk 0:02:59]}  e5 {[%clk 0:02:55]} 6. Re1 {[%clk 0:02:59]}  Nge7 {[%clk 0:02:55]} 7. d3 {[%clk 0:03:00]}  O-O {[%clk 0:02:55]} 8. Bg5 {[%clk 0:02:59]}  h6 {[%clk 0:02:54]} 9. Bh4 {[%clk 0:02:54]}  g5 {[%clk 0:02:51]} 10. Bg3 {[%clk 0:02:50]}  d6 {[%clk 0:02:31]} 11. a4 {[%clk 0:02:47]}  Be6 {[%clk 0:02:31]} 12. Na3 {[%clk 0:02:18]}  a6 {[%clk 0:02:26]} 13. Bc4 {[%clk 0:02:16]}  Qd7 {[%clk 0:02:23]} 14. h4 {[%clk 0:02:15]}  g4 {[%clk 0:02:24]} 15. Nh2 {[%clk 0:02:07]}  h5 {[%clk 0:02:13]} 16. f4 {[%clk 0:01:59]}  exf4 {[%clk 0:02:02]} 17. Bxf4 {[%clk 0:01:53]}  Ng6 {[%clk 0:01:55]} 18. Bg3 {[%clk 0:01:51]}  Nce5 {[%clk 0:01:55]} 19. Bxe6 {[%clk 0:01:40]}  Qxe6 {[%clk 0:01:35]} 20. d4 {[%clk 0:01:09]}  Nd7 {[%clk 0:01:33]} 21. d5 {[%clk 0:01:04]}  Qe7 {[%clk 0:01:10]} 22. Nc4 {[%clk 0:01:01]}  Nde5 {[%clk 0:01:06]} 23. Ne3 {[%clk 0:01:01]}  Nxh4 {[%clk 0:01:05]} 24. Bxh4 {[%clk 0:00:35]}  Qxh4 {[%clk 0:01:02]} 25. Nf5 {[%clk 0:00:35]}  Qf6 {[%clk 0:01:03]} 26. Rf1 {[%clk 0:00:36]}  Rad8 {[%clk 0:01:03]} 27. Qe2 {[%clk 0:00:34]}  Qg5 {[%clk 0:00:51]} 28. g3 {[%clk 0:00:26]}  Rfe8 {[%clk 0:00:49]} 29. Rf4 {[%clk 0:00:20]}  Ng6 {[%clk 0:00:38]} 30. Rf2 {[%clk 0:00:19]}  Re5 {[%clk 0:00:37]} 31. Raf1 {[%clk 0:00:17]}  Bf8 {[%clk 0:00:28]} 32. Qd3 {[%clk 0:00:17]}  Rde8 {[%clk 0:00:24]} 33. Re2 {[%clk 0:00:10]}  h4 {[%clk 0:00:24]} 34. gxh4 {[%clk 0:00:09]}  Nxh4 {[%clk 0:00:09]} 35. Nxh4 {[%clk 0:00:08]}  Qxh4 {[%clk 0:00:10]} 36. Kg2 {[%clk 0:00:07]}  Rh5 {[%clk 0:00:10]} 37. Qg3 {[%clk 0:00:04]}  Qh3+ {[%clk 0:00:08]} 38. Qxh3 {[%clk 0:00:03]}  gxh3+ {[%clk 0:00:07]} 39. Kh1 {[%clk 0:00:03]}  f5 {[%clk 0:00:07]} 40. Rf4 {[%clk 0:00:03]}  fxe4 {[%clk 0:00:06]} 41. Rexe4 {[%clk 0:00:02]}  Rxe4 {[%clk 0:00:06]} 42. Rxe4 {[%clk 0:00:03]}  Bg7 {[%clk 0:00:06]} 43. Ng4 {[%clk 0:00:04]}  Be5 {[%clk 0:00:06]} 44. Nxe5 {[%clk 0:00:03]}  Rxe5 {[%clk 0:00:06]} 45. Rxe5 {[%clk 0:00:03]}  dxe5 {[%clk 0:00:06]} 46. Kh2 {[%clk 0:00:01]}  b5 {[%clk 0:00:06]} 47. axb5 {[%clk 0:00:02]}  axb5 {[%clk 0:00:06]} 48. b3 {[%clk 0:00:02]}  c4 {[%clk 0:00:07]} 49. bxc4 {[%clk 0:00:02]}  bxc4 {[%clk 0:00:07]} 50. Kxh3 {[%clk 0:00:01]}  Kf7 {[%clk 0:00:08]} 51. Kg4 {[%clk 0:00:02]}  Ke7 {[%clk 0:00:08]} 52. Kf5 {[%clk 0:00:02]}  Kd6 {[%clk 0:00:07]} 53. Ke4 {[%clk 0:00:02]}  Ke7 {[%clk 0:00:07]} 54. Kxe5 {[%clk 0:00:03]}  Kd7 {[%clk 0:00:03]} 55. Kd4 {[%clk 0:00:04]}  Kd6 {[%clk 0:00:04]} 56. Kxc4 {[%clk 0:00:05]}  Kd7 {[%clk 0:00:04]} 57. Kd4 {[%clk 0:00:06]}  Kd6 {[%clk 0:00:04]} 58. c4 {[%clk 0:00:06]}  Kd7 {[%clk 0:00:05]} 59. c5 {[%clk 0:00:07]}  Kc7 {[%clk 0:00:05]} 60. Ke4 {[%clk 0:00:08]}  Kd7 {[%clk 0:00:06]} 61. Ke5 {[%clk 0:00:09]}  Ke7 {[%clk 0:00:07]} 62. d6+ {[%clk 0:00:10]}  Kd7 {[%clk 0:00:08]} 63. Kd5 {[%clk 0:00:10]}  Kd8 {[%clk 0:00:09]} 64. c6 {[%clk 0:00:11]}  Ke8 {[%clk 0:00:09]} 65. Ke6 {[%clk 0:00:12]}  Kd8 {[%clk 0:00:10]} 66. Kf7 {[%clk 0:00:12]}  Kc8 {[%clk 0:00:10]} 67. Ke7 {[%clk 0:00:12]}  Kb8 {[%clk 0:00:11]} 68. d7 {[%clk 0:00:13]}  Ka7 {[%clk 0:00:11]} 69. c7 {[%clk 0:00:14]}  Ka6 {[%clk 0:00:12]} 70. c8=Q+ {[%clk 0:00:14]}  Kb5 {[%clk 0:00:13]} 71. d8=Q {[%clk 0:00:14]}  Kb4 {[%clk 0:00:14]} 72. Qc1 {[%clk 0:00:14]}  Kb3 {[%clk 0:00:15]} 73. Qdd2 {[%clk 0:00:14]}  Ka4 {[%clk 0:00:15]} 74. Qdb2 {[%clk 0:00:13]}  Ka5 {[%clk 0:00:15]} 75. Qca1# {[%clk 0:00:12]} 1-0


[Site "https://www.chess.com"]

[Event "Titled Tuesday Blitz January 10 Late 2023"]
[White "Miszler, Levente"]
[Black "Torres Dominguez, David"]
[WhiteFideId "763276"]
[BlackFideId "2220857"]
[WhiteElo "2271"]
[BlackElo "1994"]
[Result "0-1"]
[Round "08"]
[TimeControl "180+2"]
[Date "2023.01.10"]
[WhiteClock "0:01:25"]
[BlackClock "0:01:29"]

1. e4 {[%clk 0:00:00]}  Nc6 {[%clk 0:00:00]} 2. Nf3 {[%clk 0:03:00]}  e5 {[%clk 0:02:52]} 3. d4 {[%clk 0:02:59]}  exd4 {[%clk 0:02:50]} 4. Nxd4 {[%clk 0:02:52]}  Nf6 {[%clk 0:02:50]} 5. Nc3 {[%clk 0:02:52]}  Bb4 {[%clk 0:02:49]} 6. Nxc6 {[%clk 0:02:48]}  bxc6 {[%clk 0:02:48]} 7. Bd3 {[%clk 0:02:48]}  d5 {[%clk 0:02:47]} 8. exd5 {[%clk 0:02:46]}  O-O {[%clk 0:02:46]} 9. O-O {[%clk 0:02:40]}  cxd5 {[%clk 0:02:45]} 10. Bg5 {[%clk 0:02:39]}  Be6 {[%clk 0:02:45]} 11. Qf3 {[%clk 0:02:37]}  h6 {[%clk 0:02:44]} 12. Bh4 {[%clk 0:02:34]}  g5 {[%clk 0:02:06]} 13. Bg3 {[%clk 0:02:33]}  Bg4 {[%clk 0:01:56]} 14. Qe3 {[%clk 0:02:32]}  d4 {[%clk 0:01:46]} 15. Qe5 {[%clk 0:01:50]}  dxc3 {[%clk 0:01:46]} 16. bxc3 {[%clk 0:01:42]}  Bd6 {[%clk 0:01:39]} 17. Qa5 {[%clk 0:01:35]}  Re8 {[%clk 0:01:39]} 18. h4 {[%clk 0:01:34]}  c5 {[%clk 0:01:34]} 19. hxg5 {[%clk 0:01:29]}  Qxa5 {[%clk 0:01:29]} 20. gxf6 {[%clk 0:01:25]} 0-1


[Site "https://www.chess.com"]

[Event "Titled Tuesday Blitz January 10 Late 2023"]
[White "Weisz, Bryan"]
[Black "Antonio, Jorge Carlos"]
[WhiteFideId "30934133"]
[BlackFideId "113190"]
[WhiteElo "1973"]
[BlackElo "2277"]
[Result "1-0"]
[Round "08"]
[TimeControl "180+2"]
[Date "2023.01.10"]
[WhiteClock "0:00:48"]
[BlackClock "0:00:12"]

1. e3 {[%clk 0:00:00]}  e5 {[%clk 0:00:00]} 2. Ne2 {[%clk 0:02:59]}  d5 {[%clk 0:02:54]} 3. d4 {[%clk 0:02:59]}  exd4 {[%clk 0:02:54]} 4. Nxd4 {[%clk 0:02:59]}  c6 {[%clk 0:02:52]} 5. c4 {[%clk 0:02:54]}  Nf6 {[%clk 0:02:52]} 6. Nc3 {[%clk 0:02:54]}  Bc5 {[%clk 0:02:50]} 7. Nb3 {[%clk 0:02:54]}  Bb4 {[%clk 0:02:47]} 8. Bd2 {[%clk 0:02:45]}  O-O {[%clk 0:02:40]} 9. Bd3 {[%clk 0:02:40]}  Be6 {[%clk 0:02:38]} 10. cxd5 {[%clk 0:02:28]}  Bxc3 {[%clk 0:02:33]} 11. dxe6 {[%clk 0:02:27]}  Bxd2+ {[%clk 0:02:30]} 12. Qxd2 {[%clk 0:02:22]}  fxe6 {[%clk 0:02:29]} 13. O-O-O {[%clk 0:02:20]}  Qc7 {[%clk 0:02:29]} 14. Qc2 {[%clk 0:02:20]}  Nbd7 {[%clk 0:02:21]} 15. g4 {[%clk 0:02:12]}  Ne5 {[%clk 0:02:19]} 16. g5 {[%clk 0:02:11]}  Nxd3+ {[%clk 0:02:15]} 17. Qxd3 {[%clk 0:02:07]}  Nd5 {[%clk 0:02:14]} 18. Nd4 {[%clk 0:02:07]}  Qb6 {[%clk 0:02:14]} 19. f4 {[%clk 0:01:59]}  e5 {[%clk 0:01:57]} 20. Ne6 {[%clk 0:01:54]}  exf4 {[%clk 0:01:51]} 21. Nxf8 {[%clk 0:01:50]}  Rxf8 {[%clk 0:01:22]} 22. exf4 {[%clk 0:01:48]}  Nxf4 {[%clk 0:01:21]} 23. Qc4+ {[%clk 0:01:45]}  Nd5 {[%clk 0:01:14]} 24. Rhf1 {[%clk 0:01:43]}  Re8 {[%clk 0:01:10]} 25. Rde1 {[%clk 0:01:40]}  Rxe1+ {[%clk 0:01:10]} 26. Rxe1 {[%clk 0:01:28]}  Qf2 {[%clk 0:01:02]} 27. Qe2 {[%clk 0:01:29]}  Qxe2 {[%clk 0:01:00]} 28. Rxe2 {[%clk 0:01:18]}  Kf7 {[%clk 0:00:43]} 29. h4 {[%clk 0:01:19]}  Kg6 {[%clk 0:00:44]} 30. Rf2 {[%clk 0:01:15]}  Nb4 {[%clk 0:00:43]} 31. Kd2 {[%clk 0:01:02]}  Nxa2 {[%clk 0:00:35]} 32. Rf4 {[%clk 0:00:53]}  b5 {[%clk 0:00:34]} 33. b4 {[%clk 0:00:54]}  c5 {[%clk 0:00:29]} 34. bxc5 {[%clk 0:00:48]}  b4 {[%clk 0:00:12]} 35. c6 {[%clk 0:00:48]} 1-0


[Site "https://www.chess.com"]

[Event "Titled Tuesday Blitz January 10 Late 2023"]
[White "Lopez Idarraga, Daniel Eduardo"]
[Black "Smith, Garrett L"]
[WhiteFideId "4405501"]
[BlackFideId "2024829"]
[WhiteElo "2009"]
[BlackElo "2047"]
[Result "1-0"]
[Round "08"]
[TimeControl "180+2"]
[Date "2023.01.10"]
[WhiteClock "0:00:57"]
[BlackClock "0:00:27"]

1. b3 {[%clk 0:00:00]}  g6 {[%clk 0:00:00]} 2. Bb2 {[%clk 0:03:00]}  Nf6 {[%clk 0:02:58]} 3. Nc3 {[%clk 0:03:00]}  c5 {[%clk 0:02:58]} 4. e4 {[%clk 0:02:58]}  e5 {[%clk 0:02:52]} 5. Bc4 {[%clk 0:02:57]}  Bg7 {[%clk 0:02:28]} 6. d3 {[%clk 0:02:42]}  O-O {[%clk 0:02:25]} 7. Nge2 {[%clk 0:02:37]}  Nc6 {[%clk 0:02:25]} 8. O-O {[%clk 0:02:23]}  a6 {[%clk 0:02:23]} 9. a4 {[%clk 0:02:22]}  Rb8 {[%clk 0:02:14]} 10. f4 {[%clk 0:02:21]}  d6 {[%clk 0:02:13]} 11. Nd5 {[%clk 0:02:16]}  Nxd5 {[%clk 0:02:06]} 12. Bxd5 {[%clk 0:02:13]}  Nd4 {[%clk 0:02:03]} 13. c3 {[%clk 0:02:14]}  Nxe2+ {[%clk 0:01:54]} 14. Qxe2 {[%clk 0:02:09]}  Be6 {[%clk 0:01:53]} 15. c4 {[%clk 0:02:10]}  exf4 {[%clk 0:01:50]} 16. Bxg7 {[%clk 0:02:07]}  Kxg7 {[%clk 0:01:36]} 17. Rxf4 {[%clk 0:02:05]}  b5 {[%clk 0:01:37]} 18. axb5 {[%clk 0:01:58]}  axb5 {[%clk 0:01:34]} 19. Ra7 {[%clk 0:01:57]}  Kg8 {[%clk 0:01:34]} 20. Bxe6 {[%clk 0:01:51]}  fxe6 {[%clk 0:01:30]} 21. Qg4 {[%clk 0:01:32]}  Rxf4 {[%clk 0:01:29]} 22. Qxf4 {[%clk 0:01:33]}  Qf8 {[%clk 0:01:22]} 23. Qxf8+ {[%clk 0:01:33]}  Kxf8 {[%clk 0:01:18]} 24. Rxh7 {[%clk 0:01:26]}  Kg8 {[%clk 0:01:02]} 25. Rd7 {[%clk 0:01:25]}  bxc4 {[%clk 0:01:03]} 26. bxc4 {[%clk 0:01:22]}  Rb6 {[%clk 0:01:03]} 27. Kf2 {[%clk 0:01:21]}  Kf8 {[%clk 0:00:59]} 28. Kf3 {[%clk 0:01:19]}  Ra6 {[%clk 0:00:57]} 29. Kg4 {[%clk 0:01:19]}  Ra2 {[%clk 0:00:50]} 30. Kg5 {[%clk 0:01:19]}  Rxg2+ {[%clk 0:00:47]} 31. Kf6 {[%clk 0:01:09]}  Rf2+ {[%clk 0:00:43]} 32. Kxe6 {[%clk 0:01:09]}  Rxh2 {[%clk 0:00:36]} 33. Kxd6 {[%clk 0:01:09]}  g5 {[%clk 0:00:37]} 34. Kxc5 {[%clk 0:01:08]}  g4 {[%clk 0:00:33]} 35. Rd5 {[%clk 0:01:08]}  Rh7 {[%clk 0:00:33]} 36. Rg5 {[%clk 0:01:07]}  Rg7 {[%clk 0:00:27]} 37. Rxg7 {[%clk 0:01:05]}  Kxg7 {[%clk 0:00:27]} 38. Kd4 {[%clk 0:00:57]} 1-0


[Site "https://www.chess.com"]

[Event "Titled Tuesday Blitz January 10 Late 2023"]
[White "Liu, Kelsey"]
[Black "Papp, Petra"]
[WhiteFideId "30944481"]
[BlackFideId "739049"]
[WhiteElo "2065"]
[BlackElo "2343"]
[Result "1-0"]
[Round "08"]
[TimeControl "180+2"]
[Date "2023.01.10"]
[WhiteClock "0:01:06"]
[BlackClock "0:00:20"]

1. e4 {[%clk 0:00:00]}  c5 {[%clk 0:00:00]} 2. Nf3 {[%clk 0:02:58]}  d6 {[%clk 0:02:59]} 3. Nc3 {[%clk 0:02:57]}  Nf6 {[%clk 0:02:59]} 4. e5 {[%clk 0:02:56]}  dxe5 {[%clk 0:02:59]} 5. Nxe5 {[%clk 0:02:56]}  Nbd7 {[%clk 0:02:59]} 6. d4 {[%clk 0:02:57]}  e6 {[%clk 0:02:56]} 7. Bf4 {[%clk 0:02:55]}  Nxe5 {[%clk 0:02:14]} 8. dxe5 {[%clk 0:02:53]}  Nd5 {[%clk 0:02:08]} 9. Nxd5 {[%clk 0:02:51]}  Qxd5 {[%clk 0:01:47]} 10. Bd3 {[%clk 0:02:32]}  Bd7 {[%clk 0:01:40]} 11. Qe2 {[%clk 0:02:18]}  Bc6 {[%clk 0:01:19]} 12. f3 {[%clk 0:02:11]}  Be7 {[%clk 0:01:15]} 13. O-O-O {[%clk 0:02:07]}  Qxa2 {[%clk 0:01:13]} 14. c3 {[%clk 0:02:04]}  O-O {[%clk 0:01:11]} 15. Bb1 {[%clk 0:01:49]}  Qb3 {[%clk 0:00:53]} 16. h4 {[%clk 0:01:47]}  c4 {[%clk 0:00:52]} 17. Rd4 {[%clk 0:01:39]}  Bd5 {[%clk 0:00:39]} 18. Rhd1 {[%clk 0:01:32]}  a5 {[%clk 0:00:31]} 19. Rxd5 {[%clk 0:01:24]}  exd5 {[%clk 0:00:26]} 20. Rxd5 {[%clk 0:01:06]}  Rfd8 {[%clk 0:00:26]} 21. Qe4 {[%clk 0:01:07]}  Rxd5 {[%clk 0:00:22]} 22. Qxh7+ {[%clk 0:01:06]}  Kf8 {[%clk 0:00:20]} 23. Qh8# {[%clk 0:01:06]} 1-0


[Site "https://www.chess.com"]

[Event "Titled Tuesday Blitz January 10 Late 2023"]
[White "Delaere, Jeroen"]
[Black "Corredor Castellanos, Camilo"]
[WhiteFideId "204129"]
[BlackFideId "4425871"]
[WhiteElo "2104"]
[BlackElo "1957"]
[Result "0-1"]
[Round "08"]
[TimeControl "180+2"]
[Date "2023.01.10"]
[WhiteClock "0:00:16"]
[BlackClock "0:01:20"]

1. d4 {[%clk 0:00:00]}  d5 {[%clk 0:00:00]} 2. c4 {[%clk 0:03:00]}  e6 {[%clk 0:02:56]} 3. Nc3 {[%clk 0:02:59]}  Nf6 {[%clk 0:02:56]} 4. cxd5 {[%clk 0:02:57]}  exd5 {[%clk 0:02:57]} 5. Bg5 {[%clk 0:02:56]}  Be7 {[%clk 0:02:56]} 6. e3 {[%clk 0:02:54]}  O-O {[%clk 0:02:57]} 7. Bd3 {[%clk 0:02:52]}  h6 {[%clk 0:02:57]} 8. Bf4 {[%clk 0:02:51]}  c6 {[%clk 0:02:58]} 9. h3 {[%clk 0:02:48]}  Bd6 {[%clk 0:02:58]} 10. Bxd6 {[%clk 0:02:47]}  Qxd6 {[%clk 0:02:57]} 11. Nf3 {[%clk 0:02:42]}  Re8 {[%clk 0:02:58]} 12. Qc2 {[%clk 0:02:41]}  a5 {[%clk 0:02:55]} 13. O-O {[%clk 0:02:38]}  Be6 {[%clk 0:02:47]} 14. Rab1 {[%clk 0:02:36]}  Na6 {[%clk 0:02:45]} 15. a3 {[%clk 0:02:34]}  b5 {[%clk 0:02:44]} 16. Ne5 {[%clk 0:02:32]}  Nd7 {[%clk 0:02:44]} 17. f4 {[%clk 0:02:26]}  b4 {[%clk 0:02:42]} 18. axb4 {[%clk 0:02:24]}  Nxb4 {[%clk 0:02:39]} 19. Qe2 {[%clk 0:02:03]}  Nxe5 {[%clk 0:02:38]} 20. dxe5 {[%clk 0:02:00]}  Qb8 {[%clk 0:02:29]} 21. f5 {[%clk 0:01:56]}  Bc8 {[%clk 0:02:20]} 22. e6 {[%clk 0:01:48]}  fxe6 {[%clk 0:02:10]} 23. f6 {[%clk 0:01:41]}  Rf8 {[%clk 0:02:09]} 24. Qg4 {[%clk 0:01:40]}  Qc7 {[%clk 0:01:59]} 25. Bg6 {[%clk 0:01:36]}  e5 {[%clk 0:01:51]} 26. Qg3 {[%clk 0:01:13]}  Ra7 {[%clk 0:01:47]} 27. f7+ {[%clk 0:01:03]}  Kh8 {[%clk 0:01:39]} 28. Rbc1 {[%clk 0:01:00]}  Qe7 {[%clk 0:01:38]} 29. Bb1 {[%clk 0:00:53]}  e4 {[%clk 0:01:34]} 30. Nxe4 {[%clk 0:00:40]}  dxe4 {[%clk 0:01:26]} 31. Rc4 {[%clk 0:00:16]}  Nd3 {[%clk 0:01:20]} 0-1


[Site "https://www.chess.com"]

[Event "Titled Tuesday Blitz January 10 Late 2023"]
[White "Cueto, Jonny"]
[Black "Mitrovic, Darko R"]
[WhiteFideId "3300145"]
[BlackFideId "927023"]
[WhiteElo "2122"]
[BlackElo "2220"]
[Result "0-1"]
[Round "08"]
[TimeControl "180+2"]
[Date "2023.01.10"]
[WhiteClock "0:00:06"]
[BlackClock "0:01:36"]

1. d4 {[%clk 0:00:00]}  Nf6 {[%clk 0:00:00]} 2. Bf4 {[%clk 0:03:00]}  b6 {[%clk 0:02:53]} 3. f3 {[%clk 0:02:54]}  d5 {[%clk 0:02:52]} 4. c4 {[%clk 0:02:39]}  e6 {[%clk 0:02:51]} 5. Nc3 {[%clk 0:02:35]}  Bd6 {[%clk 0:02:48]} 6. Bxd6 {[%clk 0:02:34]}  Qxd6 {[%clk 0:02:46]} 7. e4 {[%clk 0:02:31]}  dxe4 {[%clk 0:02:43]} 8. fxe4 {[%clk 0:02:30]}  e5 {[%clk 0:02:37]} 9. Nf3 {[%clk 0:02:31]}  Nc6 {[%clk 0:02:35]} 10. d5 {[%clk 0:02:18]}  Ne7 {[%clk 0:02:32]} 11. Bd3 {[%clk 0:02:12]}  Bd7 {[%clk 0:02:30]} 12. O-O {[%clk 0:01:48]}  O-O {[%clk 0:02:28]} 13. Qd2 {[%clk 0:01:45]}  Ng6 {[%clk 0:02:27]} 14. Ne2 {[%clk 0:01:06]}  a5 {[%clk 0:02:25]} 15. h3 {[%clk 0:00:57]}  Qc5+ {[%clk 0:02:23]} 16. Kh2 {[%clk 0:00:48]}  a4 {[%clk 0:02:20]} 17. Rac1 {[%clk 0:00:45]}  Ne8 {[%clk 0:02:05]} 18. Rc3 {[%clk 0:00:43]}  f6 {[%clk 0:02:00]} 19. Bb1 {[%clk 0:00:33]}  Nd6 {[%clk 0:01:58]} 20. Qe3 {[%clk 0:00:27]}  Qxe3 {[%clk 0:01:56]} 21. Rxe3 {[%clk 0:00:27]}  Ne7 {[%clk 0:01:55]} 22. Rc1 {[%clk 0:00:27]}  Nb7 {[%clk 0:01:45]} 23. Ne1 {[%clk 0:00:22]}  Nc5 {[%clk 0:01:43]} 24. Nd3 {[%clk 0:00:18]}  Nc8 {[%clk 0:01:42]} 25. Nxc5 {[%clk 0:00:19]}  bxc5 {[%clk 0:01:42]} 26. Ra3 {[%clk 0:00:19]}  Nd6 {[%clk 0:01:42]} 27. Rcc3 {[%clk 0:00:17]}  Rfb8 {[%clk 0:01:42]} 28. b3 {[%clk 0:00:10]}  Kf7 {[%clk 0:01:42]} 29. Rxa4 {[%clk 0:00:07]}  Bxa4 {[%clk 0:01:39]} 30. bxa4 {[%clk 0:00:06]}  Rxb1 {[%clk 0:01:36]} 0-1


[Site "https://www.chess.com"]

[Event "Titled Tuesday Blitz January 10 Late 2023"]
[White "Soyunlu, Narmin"]
[Black "Jenkins, Drake"]
[WhiteFideId "13400843"]
[BlackFideId "2022397"]
[WhiteElo "2013"]
[BlackElo "2130"]
[Result "1-0"]
[Round "08"]
[TimeControl "180+2"]
[Date "2023.01.10"]
[WhiteClock "0:00:06"]
[BlackClock "0:00:02"]

1. c4 {[%clk 0:00:00]}  Nf6 {[%clk 0:00:00]} 2. g3 {[%clk 0:02:32]}  c5 {[%clk 0:02:59]} 3. Bg2 {[%clk 0:02:30]}  g6 {[%clk 0:02:59]} 4. Nc3 {[%clk 0:02:30]}  Bg7 {[%clk 0:02:59]} 5. Nf3 {[%clk 0:02:30]}  d5 {[%clk 0:02:59]} 6. cxd5 {[%clk 0:02:31]}  Nxd5 {[%clk 0:02:59]} 7. O-O {[%clk 0:02:30]}  O-O {[%clk 0:03:00]} 8. Nxd5 {[%clk 0:02:29]}  Qxd5 {[%clk 0:02:59]} 9. d3 {[%clk 0:02:23]}  Nc6 {[%clk 0:02:59]} 10. Nd2 {[%clk 0:02:22]}  Qh5 {[%clk 0:02:58]} 11. Ne4 {[%clk 0:02:22]}  Bd7 {[%clk 0:02:49]} 12. Be3 {[%clk 0:02:08]}  b6 {[%clk 0:02:35]} 13. Rc1 {[%clk 0:01:58]}  Bxb2 {[%clk 0:02:29]} 14. Rc2 {[%clk 0:01:46]}  Bd4 {[%clk 0:02:28]} 15. Bf4 {[%clk 0:01:43]}  Rac8 {[%clk 0:02:27]} 16. Bf3 {[%clk 0:01:16]}  Bg4 {[%clk 0:02:12]} 17. Bg2 {[%clk 0:00:44]}  Bg7 {[%clk 0:02:10]} 18. Be3 {[%clk 0:00:38]}  Nd4 {[%clk 0:02:00]} 19. Bxd4 {[%clk 0:00:26]}  Bxd4 {[%clk 0:01:18]} 20. Qd2 {[%clk 0:00:24]}  Rfd8 {[%clk 0:01:18]} 21. Rb1 {[%clk 0:00:22]}  Be6 {[%clk 0:00:59]} 22. Qe1 {[%clk 0:00:19]}  Qf5 {[%clk 0:00:33]} 23. Nc3 {[%clk 0:00:16]}  c4 {[%clk 0:00:27]} 24. Nb5 {[%clk 0:00:10]}  cxd3 {[%clk 0:00:13]} 25. Rxc8 {[%clk 0:00:05]}  Rxc8 {[%clk 0:00:10]} 26. Nxd4 {[%clk 0:00:05]}  Qe5 {[%clk 0:00:06]} 27. Nxe6 {[%clk 0:00:04]}  Qxe6 {[%clk 0:00:02]} 28. exd3 {[%clk 0:00:04]}  Qxa2 {[%clk 0:00:02]} 29. Rc1 {[%clk 0:00:04]}  Rxc1 {[%clk 0:00:02]} 30. Qxc1 {[%clk 0:00:03]}  e6 {[%clk 0:00:01]} 31. Qc8+ {[%clk 0:00:04]}  Kg7 {[%clk 0:00:02]} 32. Qc3+ {[%clk 0:00:04]}  Kg8 {[%clk 0:00:02]} 33. Qc4 {[%clk 0:00:05]}  Qb1+ {[%clk 0:00:02]} 34. Bf1 {[%clk 0:00:06]} 1-0


[Site "https://www.chess.com"]

[Event "Titled Tuesday Blitz January 10 Late 2023"]
[White "Atanasov, Radislav"]
[Black "Almedina Ortiz, Edgardo J."]
[WhiteFideId "2901471"]
[BlackFideId "3100197"]
[WhiteElo "2025"]
[BlackElo "2156"]
[Result "1-0"]
[Round "08"]
[TimeControl "180+2"]
[Date "2023.01.10"]
[WhiteClock "0:00:03"]
[BlackClock "0:00:11"]

1. e4 {[%clk 0:00:00]}  e5 {[%clk 0:00:00]} 2. Nf3 {[%clk 0:02:59]}  Nc6 {[%clk 0:02:58]} 3. Bb5 {[%clk 0:02:58]}  a6 {[%clk 0:02:58]} 4. Ba4 {[%clk 0:02:59]}  Nf6 {[%clk 0:02:57]} 5. O-O {[%clk 0:02:59]}  Be7 {[%clk 0:02:57]} 6. Re1 {[%clk 0:03:00]}  b5 {[%clk 0:02:56]} 7. Bb3 {[%clk 0:02:59]}  d6 {[%clk 0:02:56]} 8. c3 {[%clk 0:03:00]}  O-O {[%clk 0:02:57]} 9. h3 {[%clk 0:02:59]}  Na5 {[%clk 0:02:56]} 10. Bc2 {[%clk 0:03:00]}  c5 {[%clk 0:02:56]} 11. d4 {[%clk 0:02:59]}  Qc7 {[%clk 0:02:57]} 12. Nbd2 {[%clk 0:02:59]}  cxd4 {[%clk 0:02:57]} 13. cxd4 {[%clk 0:02:56]}  Nc6 {[%clk 0:02:55]} 14. Nb3 {[%clk 0:02:57]}  a5 {[%clk 0:02:55]} 15. Be3 {[%clk 0:02:58]}  a4 {[%clk 0:02:55]} 16. Nbd2 {[%clk 0:02:57]}  Bd7 {[%clk 0:02:54]} 17. a3 {[%clk 0:02:57]}  Rfc8 {[%clk 0:02:52]} 18. Rc1 {[%clk 0:02:29]}  Qb7 {[%clk 0:02:41]} 19. Qe2 {[%clk 0:02:29]}  Bd8 {[%clk 0:02:39]} 20. Bb1 {[%clk 0:02:26]}  Ba5 {[%clk 0:02:21]} 21. Rcd1 {[%clk 0:02:21]}  b4 {[%clk 0:02:15]} 22. Nc4 {[%clk 0:02:17]}  Bc7 {[%clk 0:02:09]} 23. dxe5 {[%clk 0:02:07]}  dxe5 {[%clk 0:02:07]} 24. Bg5 {[%clk 0:01:43]}  Be6 {[%clk 0:02:02]} 25. Bxf6 {[%clk 0:01:27]}  gxf6 {[%clk 0:02:00]} 26. Nd6 {[%clk 0:01:22]}  Bxd6 {[%clk 0:02:01]} 27. Rxd6 {[%clk 0:01:10]}  bxa3 {[%clk 0:01:59]} 28. bxa3 {[%clk 0:01:11]}  Kh8 {[%clk 0:01:45]} 29. Nh4 {[%clk 0:01:10]}  Nd4 {[%clk 0:01:34]} 30. Qh5 {[%clk 0:00:51]}  Rg8 {[%clk 0:01:32]} 31. Rxd4 {[%clk 0:00:47]}  exd4 {[%clk 0:01:26]} 32. e5 {[%clk 0:00:40]}  f5 {[%clk 0:01:25]} 33. Qh6 {[%clk 0:00:40]}  Rg7 {[%clk 0:01:12]} 34. g3 {[%clk 0:00:34]}  Rag8 {[%clk 0:00:58]} 35. Bxf5 {[%clk 0:00:25]}  Bxf5 {[%clk 0:00:47]} 36. Nxf5 {[%clk 0:00:18]}  Rg6 {[%clk 0:00:42]} 37. Qh4 {[%clk 0:00:17]}  Re8 {[%clk 0:00:42]} 38. Qxd4 {[%clk 0:00:15]}  Qb3 {[%clk 0:00:39]} 39. e6+ {[%clk 0:00:14]}  f6 {[%clk 0:00:35]} 40. e7 {[%clk 0:00:13]}  Qxa3 {[%clk 0:00:31]} 41. Nd6 {[%clk 0:00:09]}  Rxg3+ {[%clk 0:00:27]} 42. Kf1 {[%clk 0:00:07]}  Rxe7 {[%clk 0:00:22]} 43. Qxf6+ {[%clk 0:00:03]}  Rgg7 {[%clk 0:00:16]} 44. Rxe7 {[%clk 0:00:03]}  Qc1+ {[%clk 0:00:14]} 45. Re1 {[%clk 0:00:03]}  Qa3 {[%clk 0:00:11]} 46. Re8# {[%clk 0:00:03]} 1-0


[Site "https://www.chess.com"]